bitfinex/quotes_ETHUSD_20251120
["timestamp","ask_amount","ask_price","bid_price","bid_amount"]
[1763620001011,5.24430254,3031.2,3031.1,0.111]
[1763620001212,5.24430254,3031.2,3031.1,3.893]
[1763620003019,1.94527906,3031.2,3031.1,3.893]
[1763620003313,4.77430254,3031.2,3031.1,3.893]
[1763620003815,5.24430254,3031.2,3031.1,3.893]
[1763620005108,6.09862463,3031.2,3031.1,0.111]
[1763620005286,5.24430254,3031.2,3031.1,0.111]
[1763620006126,5.24630254,3031.2,3031.1,0.111]
[1763620006733,4.3393099,3031.2,3031.1,0.111]
[1763620006899,1.04028642,3031.2,3031.1,0.111]
[1763620007102,3.8693099,3031.2,3031.1,0.111]
[1763620007831,4.3393099,3031.2,3031.1,0.111]
[1763620010546,0.57028642,3031.2,3031.1,0.111]
[1763620010710,0.30798642,3031.2,3031.1,0.5707]
[1763620011544,0.002,3031.2,3031.1,0.5707]
[1763620012800,0.002,3031.2,3031.1,1.2547]
[1763620013221,0.002,3031.2,3031.1,1.46878436]
[1763620014950,0.002,3031.2,3031.1,0.97418436]
[1763620015139,0.002,3031.2,3031.1,1.2547]
[1763620015842,0.002,3031.2,3031.1,0.5707]
[1763620016047,0.002,3031.2,3031.1,4.3527]
[1763620016854,0.002,3031.2,3031.1,4.8473]
[1763620021246,0.30933334,3031.2,3031.1,4.8473]
[1763620021450,0.002,3031.2,3031.1,4.8473]
[1763620021831,0.002,3031.2,3031.1,4.3527]
[1763620022038,0.002,3031.2,3031.1,4.8473]
[1763620022232,3.53759409,3031.2,3031.1,3.893]
[1763620022553,0.30933334,3031.2,3031.1,3.893]
[1763620022723,0.002,3031.2,3031.1,4.3527]
[1763620022920,0.002,3031.2,3031.1,4.8473]
[1763620023344,0.002,3031.2,3031.1,5.66196221]
[1763620025254,0.002,3031.2,3031.1,8.96109453]
[1763620025629,0.002,3031.2,3031.1,12.44209453]
[1763620026517,0.002,3031.2,3031.1,8.96109453]
[1763620026720,0.002,3031.2,3031.1,12.44209453]
[1763620027222,0.002,3031.2,3031.1,10.1426193]
[1763620027651,0.002,3031.2,3031.1,5.66196221]
[1763620028057,0.002,3031.2,3031.1,6.05755421]
[1763620028235,0.002,3031.2,3031.1,5.16736221]
[1763620029249,0.002,3031.2,3031.1,5.61736221]
[1763620030952,0.002,3031.2,3031.1,5.16736221]
[1763620031141,0.2459,3031.2,3031.1,4.70766221]
[1763620031339,6.83511757,3031.2,3031.1,3.893]
[1763620031655,7.14236233,3031.2,3031.1,3.893]
[1763620032744,6.65566233,3031.2,3031.1,3.893]
[1763620033753,7.14236233,3031.2,3031.1,3.893]
[1763620036746,7.14236233,3031.2,3031.1,0.111]
[1763620040282,0.90699264,3031.1,3030.8,0.111]
[1763620040449,2.98879409,3030.9,3030.8,0.111]
[1763620040657,0.74214476,3030.9,3030.8,0.111]
[1763620041449,1.22894476,3030.9,3030.8,0.111]
[1763620041654,0.74214476,3030.9,3030.8,0.111]
[1763620042466,4.04149478,3030.9,3030.8,0.111]
[1763620042654,4.52829478,3030.9,3030.8,0.111]
[1763620044425,3.60603657,3030.9,3030.8,0.111]
[1763620044726,3.60603142,3030.9,3030.8,0.111]
[1763620045281,3.85563142,3030.9,3030.8,0.111]
[1763620045704,3.85563142,3030.9,3030.8,3.893]
[1763620046236,0.4529,3030.9,3030.8,0.111]
[1763620046531,3.75225002,3030.9,3030.8,0.111]
[1763620046727,4.05887143,3030.9,3030.8,0.111]
[1763620047134,3.75225002,3030.9,3030.8,0.111]
[1763620048116,3.29929283,3031.0,3030.8,0.6071]
[1763620048322,3.29929283,3031.0,3030.8,1.04601]
[1763620048727,0.002,3031.2,3030.8,1.04601]
[1763620048902,0.30867674,3031.2,3030.8,1.53531]
[1763620049115,0.30867674,3031.2,3030.8,1.04601]
[1763620049308,0.2772,3030.9,3030.8,0.111]
[1763620049814,0.30667674,3031.0,3030.8,0.111]
[1763620050640,3.29935002,3030.9,3030.8,0.111]
[1763620051003,3.29935002,3030.9,3030.8,0.6071]
[1763620051503,3.29935002,3030.9,3030.8,4.3891]
[1763620052944,3.2992465,3031.0,3030.8,4.3891]
[1763620053147,6.598493,3031.0,3030.8,4.3891]
[1763620053441,0.002,3031.2,3030.9,0.9854]
[1763620053648,3.60813529,3031.2,3031.0,0.4961]
[1763620053849,0.30710636,3031.1,3030.9,0.4893]
[1763620054828,3.6063463,3031.1,3030.8,3.893]
[1763620055148,0.30714415,3031.0,3030.8,4.3823]
[1763620055534,0.30714411,3031.0,3030.9,0.4961]
[1763620056341,0.58434411,3031.0,3030.8,3.893]
[1763620056512,0.30714411,3031.0,3030.8,3.893]
[1763620057539,3.60638528,3031.0,3030.9,3.782]
[1763620058074,3.60638528,3031.0,3030.9,4.2736]
[1763620058851,3.60638528,3031.0,3030.9,3.782]
[1763620060213,6.67107937,3031.0,3030.9,3.782]
[1763620060456,7.14637937,3031.0,3030.9,3.782]
[1763620060753,7.14637937,3031.0,3030.9,4.2736]
[1763620060754,3.60638528,3031.0,3030.9,4.2736]
[1763620061049,0.30714411,3031.0,3030.9,5.18406]
[1763620061656,0.30714411,3031.0,3030.9,4.71206]
[1763620061877,0.002,3031.2,3030.9,5.18406]
[1763620061878,3.30103427,3031.2,3030.9,5.18406]
[1763620062076,3.30103427,3031.2,3031.1,0.4916]
[1763620062077,0.002,3031.2,3031.1,0.4916]
[1763620062378,0.30967115,3031.2,3031.1,0.4916]
[1763620062678,0.002,3031.2,3031.1,1.482006]
[1763620064178,0.002,3031.2,3031.1,1.010006]
[1763620064380,0.002,3031.2,3031.1,1.482006]
[1763620065184,0.002,3031.2,3031.1,2.372198]
[1763620065689,0.002,3031.2,3031.1,8.76615718]
[1763620065877,0.002,3031.2,3031.1,5.68813096]
[1763620066993,0.002,3031.2,3031.1,12.37633423]
[1763620067285,0.002,3031.2,3031.1,14.15494594]
[1763620068463,0.002,3031.2,3031.1,12.37633423]
[1763620069594,0.002,3031.2,3031.1,9.57463496]
[1763620069757,0.002,3031.2,3031.1,12.37633423]
[1763620070268,0.002,3031.2,3031.1,9.47013096]
[1763620070451,0.002,3031.2,3031.1,10.35792754]
[1763620070956,0.002,3031.2,3031.1,6.57592754]
[1763620071385,0.002,3031.2,3031.1,6.10392754]
[1763620071589,0.002,3031.2,3031.1,6.57592754]
[1763620072556,0.002,3031.2,3031.1,5.68813096]
[1763620074097,0.0979,3031.2,3031.0,3.782]
[1763620074592,0.0979,3031.2,3031.0,7.08121995]
[1763620074757,0.0979,3031.2,3031.0,3.782]
[1763620074758,0.002,3031.2,3031.0,3.782]
[1763620075358,0.002,3031.2,3030.9,3.73777166]
[1763620075559,0.002,3031.2,3031.0,0.76202303]
[1763620075961,0.002,3031.2,3031.1,3.782]
[1763620077904,0.5716,3031.2,3031.1,3.782]
[1763620078104,3.87062348,3031.2,3030.9,3.782]
[1763620078306,3.30102348,3031.2,3030.9,3.782]
[1763620078604,0.4736,3031.0,3030.9,3.782]
[1763620079566,0.5734,3031.0,3030.8,0.111]
[1763620079805,0.7587,3030.9,3030.8,0.111]
[1763620080005,4.05805002,3030.9,3030.8,0.111]
[1763620080208,3.29913232,3031.1,3030.8,0.6026]
[1763620080501,3.29913232,3031.1,3030.8,0.111]
[1763620080502,6.59826464,3031.1,3030.8,0.111]
[1763620081094,7.07576464,3031.1,3030.8,0.111]
[1763620081280,3.29913232,3031.1,3030.8,0.111]
[1763620081475,6.59826464,3031.1,3030.8,0.111]
[1763620081716,0.0929,3030.9,3030.8,0.111]
[1763620082173,3.39225002,3030.9,3030.8,0.111]
[1763620083305,0.002,3031.2,3030.8,0.6026]
[1763620083506,0.4795,3031.2,3030.8,0.6026]
[1763620084008,3.29913232,3031.1,3030.8,0.6026]
[1763620084412,3.29913232,3031.1,3030.8,0.111]
[1763620084614,0.002,3031.2,3030.8,0.111]
[1763620084800,0.002,3031.2,3030.8,0.583]
[1763620085001,0.002,3031.2,3031.1,0.4916]
[1763620085310,3.30102348,3031.2,3031.1,0.4916]
[1763620085478,3.39392348,3031.2,3030.8,0.111]
[1763620085685,0.4736,3030.9,3030.8,0.111]
[1763620085990,0.4736,3030.9,3030.8,3.893]
[1763620086316,4.05805002,3030.9,3030.8,3.893]
[1763620087235,0.6619,3030.9,3030.8,0.111]
[1763620087395,0.4736,3030.9,3030.8,0.111]
[1763620088235,3.29929167,3031.0,3030.8,0.111]
[1763620088533,3.29918402,3031.1,3030.8,0.111]
[1763620088738,3.30106558,3031.2,3030.8,0.111]
[1763620088938,3.30106558,3031.2,3031.0,0.4966]
[1763620090502,0.002,3031.2,3031.0,0.4966]
[1763620091335,0.002,3031.2,3030.8,0.6017]
[1763620091544,0.002,3031.1,3030.8,0.6017]
[1763620091913,0.002,3031.1,3031.0,0.4966]
[1763620092117,0.002,3031.1,3030.8,0.6017]
[1763620094442,0.002,3031.1,3031.0,0.4966]
[1763620094644,0.002,3031.1,3030.8,0.6017]
[1763620094845,0.002,3031.1,3031.0,0.4966]
[1763620095561,0.002,3031.1,3031.0,0.9873]
[1763620095760,0.002,3031.1,3031.0,2.04048089]
[1763620096829,0.002,3031.1,3031.0,5.33972206]
[1763620097960,0.002,3031.1,3031.0,10.0102375]
[1763620098860,0.002,3031.1,3031.0,13.78662795]
[1763620099240,0.002,3031.1,3031.0,13.91869934]
[1763620104079,0.002,3031.2,3031.0,17.21794051]
[1763620104383,0.002,3031.2,3031.1,2.70909405]
[1763620105366,0.002,3031.2,3031.1,6.00822637]
[1763620106776,0.002,3031.2,3031.1,9.48922637]
[1763620108083,0.002,3031.2,3031.1,13.27122637]
[1763620108280,0.002,3031.2,3031.1,15.06707731]
[1763620108594,0.002,3031.2,3031.1,14.17821901]
[1763620113378,0.002,3031.2,3031.1,5.50379405]
[1763620113589,0.002,3031.2,3031.1,9.69173161]
[1763620114001,0.4541,3031.5,3031.4,3.78]
[1763620114201,0.4541,3031.5,3031.4,3.891]
[1763620114374,0.5753,3031.5,3031.4,3.891]
[1763620114575,3.87399701,3031.5,3031.4,3.891]
[1763620115075,0.5753,3031.5,3031.4,3.891]
[1763620115266,3.87399701,3031.5,3031.4,3.891]
[1763620115471,0.5753,3031.5,3031.4,3.891]
[1763620117011,0.1232,3031.5,3031.4,3.891]
[1763620117198,0.002,3031.5,3031.4,4.60999647]
[1763620120610,0.002,3031.5,3031.4,5.10829647]
[1763620122414,0.002,3031.5,3031.4,4.60999647]
[1763620123223,0.0803,3031.5,3031.4,4.60999647]
[1763620123395,0.0803,3031.5,3031.4,3.891]
[1763620125023,0.002,3031.5,3031.4,4.3893]
[1763620125319,3.87019701,3031.5,3031.4,0.111]
[1763620125520,4.17792107,3031.5,3031.4,0.111]
[1763620126885,5.20594252,3031.5,3031.4,0.111]
[1763620127184,8.00919636,3031.5,3031.4,0.111]
[1763620129897,14.60659038,3031.5,3031.1,0.001]
[1763620130098,2.80815384,3031.2,3031.1,0.001]
[1763620130304,3.1158779,3031.2,3031.1,0.001]
[1763620130627,3.97240569,3031.2,3031.1,0.001]
[1763620131500,7.27142917,3031.2,3031.1,0.001]
[1763620133533,7.27092566,3031.2,3031.1,0.001]
[1763620135199,6.90979787,3031.2,3031.1,0.001]
[1763620140343,4.10654403,3031.2,3031.1,0.001]
[1763620141245,3.61114403,3031.2,3031.1,0.001]
[1763620141614,3.60624403,3031.2,3031.1,0.4993]
[1763620141816,0.002,3031.5,3031.1,0.958]
[1763620142042,0.002,3031.5,3031.2,0.4983]
[1763620142350,0.30892193,3031.5,3031.2,0.957]
[1763620142526,0.30892193,3031.5,3031.4,0.4983]
[1763620142728,0.002,3031.5,3031.4,0.4983]
[1763620143046,3.37875384,3031.5,3031.1,0.001]
[1763620143344,0.4641,3031.2,3031.1,0.001]
[1763620143533,0.77107613,3031.2,3031.1,0.001]
[1763620143733,0.88037613,3031.2,3031.1,0.001]
[1763620143932,4.17939961,3031.2,3031.1,0.001]
[1763620146453,4.07009961,3031.2,3031.1,0.001]
[1763620146753,4.17939961,3031.2,3031.1,0.001]
[1763620148651,5.20755679,3031.2,3031.1,0.001]
[1763620149154,6.11454943,3031.2,3031.1,0.001]
[1763620158473,6.11454943,3031.2,3031.1,3.781]
[1763620159577,8.91780327,3031.2,3031.1,3.781]
[1763620160581,10.20880739,3031.2,3031.1,0.001]
[1763620160782,11.19992532,3031.2,3031.1,0.001]
[1763620161078,11.20192532,3031.2,3031.1,0.001]
[1763620163197,10.3164252,3031.2,3031.1,0.001]
[1763620167500,10.31660986,3031.2,3031.1,0.001]
[1763620168468,10.42760986,3031.2,3031.1,0.001]
[1763620170581,10.31660986,3031.2,3031.1,0.001]
[1763620170980,9.80180586,3031.2,3031.1,0.001]
[1763620171182,8.77364868,3031.2,3031.1,0.001]
[1763620172006,8.88294868,3031.2,3031.1,0.001]
[1763620172380,5.97039484,3031.2,3031.1,3.781]
[1763620172710,8.30954868,3031.2,3031.1,4.2569]
[1763620172918,8.77014868,3031.2,3031.1,3.781]
[1763620173568,5.50629484,3031.2,3031.1,4.2569]
[1763620174004,8.30954868,3031.2,3031.1,4.2569]
[1763620174218,8.30954868,3031.2,3031.1,3.781]
[1763620174420,5.50629484,3031.2,3031.1,4.2569]
[1763620174702,8.30954868,3031.2,3031.1,3.781]
[1763620175703,8.30984598,3031.2,3031.1,3.781]
[1763620176012,8.76694598,3031.2,3031.1,3.781]
[1763620176506,8.76694598,3031.2,3031.1,0.001]
[1763620177773,8.76694598,3031.2,3031.1,0.001]
[1763620177974,8.30984598,3031.2,3031.1,0.001]
[1763620178411,5.50659214,3031.2,3031.1,0.498]
[1763620178616,4.51547421,3031.2,3031.1,0.498]
[1763620178812,5.01347421,3031.2,3031.1,0.49342773]
[1763620181402,4.51547421,3031.2,3031.1,0.49342773]
[1763620183228,4.51547421,3031.2,3031.1,0.95712773]
[1763620183423,3.60848157,3031.2,3031.1,0.95712773]
[1763620183623,4.51547421,3031.2,3031.1,0.95712773]
[1763620183831,4.51547421,3031.2,3031.1,0.49342773]
[1763620184129,4.51547421,3031.2,3031.1,0.95712773]
[1763620185000,8.27819769,3031.2,3031.0,0.001]
[1763620185232,0.30855809,3031.1,3031.0,0.001]
[1763620185534,0.4406923,3031.1,3031.0,0.001]
[1763620185728,0.4395923,3031.1,3031.0,0.498]
[1763620188937,4.64571726,3031.1,3031.0,0.498]
[1763620189136,5.92263871,3031.1,3031.0,0.498]
[1763620193844,4.51358305,3031.1,3031.0,0.9617]
[1763620194040,4.51358305,3031.1,3031.0,4.7417]
[1763620194742,4.51558305,3031.1,3031.0,4.7417]
[1763620197638,4.51558305,3031.1,3031.0,4.278]
[1763620197958,4.51558305,3031.1,3031.0,4.7417]
[1763620198458,7.31995678,3031.1,3031.0,4.278]
[1763620199228,7.42755678,3031.1,3031.0,3.781]
[1763620200232,7.31995678,3031.1,3031.0,4.278]
[1763620200466,4.51591673,3031.1,3031.0,4.7417]
[1763620200768,3.60892409,3031.1,3031.0,5.22707]
[1763620201961,6.52089782,3031.1,3031.0,3.781]
[1763620202263,6.41329782,3031.1,3031.0,4.278]
[1763620202467,7.89369046,3031.1,3031.0,3.781]
[1763620203158,7.42789046,3031.1,3031.0,3.781]
[1763620205568,7.32029046,3031.1,3031.0,4.278]
[1763620205949,7.32029046,3031.1,3031.0,0.498]
[1763620206973,7.78399046,3031.1,3031.0,0.001]
[1763620207169,7.78410436,3031.1,3031.0,0.001]
[1763620207354,9.00591774,3031.1,3031.0,0.001]
[1763620207973,8.89261774,3031.1,3031.0,0.001]
[1763620208176,7.32040436,3031.1,3031.0,0.4631]
[1763620208403,0.30990567,3031.1,3031.0,0.9316]
[1763620208576,0.30990567,3031.1,3031.0,4.7116]
[1763620208871,0.002,3031.1,3031.0,5.19396]
[1763620209242,0.002,3031.1,3031.0,1.41396]
[1763620209563,0.002,3031.1,3031.0,0.9316]
[1763620209769,0.002,3031.1,3031.0,1.82265547]
[1763620209959,0.002,3031.1,3031.0,0.9316]
[1763620210383,0.002,3031.1,3031.0,1.82189418]
[1763620210674,0.002,3031.1,3031.0,0.9316]
[1763620211070,0.002,3031.1,3031.0,1.50298942]
[1763620213506,0.002,3031.1,3031.0,4.80223059]
[1763620213703,0.002,3031.1,3031.0,5.20773459]
[1763620213905,0.002,3031.1,3031.0,6.39164048]
[1763620214473,0.002,3031.2,3031.0,10.59787429]
[1763620214711,0.002,3031.2,3031.1,2.2708248]
[1763620214879,0.002,3031.2,3031.1,0.9306]
[1763620215281,0.002,3031.2,3031.1,1.8195986]
[1763620215481,0.002,3031.2,3031.1,5.11873092]
[1763620216118,0.002,3031.2,3031.1,1.8195986]
[1763620216318,0.002,3031.2,3031.1,5.11873092]
[1763620216523,0.002,3031.2,3031.1,2.50710122]
[1763620216744,0.002,3031.2,3031.1,5.80623354]
[1763620217308,0.002,3031.2,3031.1,4.91723494]
[1763620217530,0.002,3031.2,3031.1,7.72160867]
[1763620217731,0.002,3031.2,3031.1,9.03410531]
[1763620218051,0.002,3031.2,3031.1,7.41363747]
[1763620218351,0.002,3031.2,3031.1,6.22973158]
[1763620219236,0.002,3031.2,3031.1,7.41363747]
[1763620220214,0.002,3031.5,3031.2,1.31249664]
[1763620220542,0.002,3031.5,3031.4,0.4621]
[1763620220912,0.01350576,3032.2,3031.8,0.4621]
[1763620221136,0.01350576,3032.2,3032.0,0.4621]
[1763620221535,0.01350576,3032.2,3032.0,0.9306]
[1763620223416,0.01350576,3032.2,3032.0,4.22875303]
[1763620223617,0.01350576,3032.2,3032.0,1.97483878]
[1763620224021,0.01350576,3032.2,3032.0,0.9306]
[1763620226458,0.01350576,3032.2,3032.0,4.22875303]
[1763620226638,0.01350576,3032.2,3032.0,0.9306]
[1763620227038,0.01350576,3032.2,3032.0,0.4621]
[1763620227229,0.01350576,3032.2,3032.0,0.9306]
[1763620227430,0.01350576,3032.2,3032.0,1.36459571]
[1763620228355,0.01350576,3032.2,3032.0,0.9306]
[1763620229043,0.4894,3032.1,3031.4,0.4983]
[1763620229232,2.80437373,3032.0,3031.1,0.68750262]
[1763620229428,2.80437373,3032.0,3031.2,0.6093]
[1763620229429,6.59652362,3031.9,3031.2,0.6093]
[1763620229740,6.79622362,3031.9,3031.2,0.6093]
[1763620230050,6.79622362,3031.9,3031.2,1.0690043]
[1763620230472,3.29826181,3031.9,3031.3,0.4983]
[1763620230979,6.59652362,3031.9,3031.3,0.4983]
[1763620231696,7.50508114,3032.1,3031.3,0.4983]
[1763620231880,2.80437373,3032.0,3031.2,0.5707043]
[1763620232081,3.29687373,3032.0,3031.2,1.0690043]
[1763620232396,0.1997,3031.9,3031.2,1.0690043]
[1763620232552,0.1997,3031.9,3031.3,0.93511333]
[1763620233269,0.1997,3031.9,3031.3,0.43681333]
[1763620233478,10.80195487,3032.1,3031.3,0.43681333]
[1763620233479,3.79254425,3032.1,3031.4,0.4983]
[1763620233648,6.5980885,3032.1,3031.4,0.4983]
[1763620237158,0.30685171,3032.0,3031.4,0.4983]
[1763620237361,0.30685171,3032.0,3031.5,0.42339991]
[1763620237567,0.30685171,3032.0,3031.6,0.111]
[1763620237761,0.30685171,3032.0,3031.6,0.6093]
[1763620237990,3.29826181,3031.9,3031.6,0.6093]
[1763620238399,3.2981874,3032.0,3031.8,0.4548]
[1763620238699,3.2981874,3032.0,3031.9,3.772]
[1763620238999,3.60523697,3032.0,3031.9,3.772]
[1763620239207,3.67433697,3032.0,3031.9,3.772]
[1763620239499,3.60523697,3032.0,3031.9,3.772]
[1763620239703,3.67433697,3032.0,3031.9,3.772]
[1763620240204,3.67432943,3032.0,3031.9,3.772]
[1763620244182,0.30704203,3032.0,3031.9,4.2268]
[1763620244384,0.002,3032.1,3031.9,5.14298]
[1763620244683,0.002,3032.1,3032.0,0.5658]
[1763620245298,3.30004919,3032.1,3032.0,1.0593]
[1763620245499,3.60709122,3032.1,3032.0,0.5658]
[1763620245685,3.67619122,3032.1,3032.0,0.111]
[1763620247526,3.67619122,3032.1,3032.0,3.883]
[1763620249299,4.16659122,3032.1,3032.0,3.883]
[1763620249512,3.67619122,3032.1,3032.0,3.883]
[1763620250419,4.16659122,3032.1,3032.0,3.883]
[1763620250626,3.67619122,3032.1,3032.0,3.883]
[1763620254101,4.16659122,3032.1,3032.0,3.883]
[1763620255197,3.67619122,3032.1,3032.0,3.883]
[1763620255404,4.16659122,3032.1,3032.0,3.883]
[1763620257235,3.60709122,3032.1,3032.0,4.3378]
[1763620257440,0.30904203,3032.1,3032.0,4.77158]
[1763620257639,0.002,3032.1,3032.0,5.26508]
[1763620258336,3.75704425,3032.1,3032.0,4.31678]
[1763620258628,4.06408628,3032.1,3032.0,3.883]
[1763620258834,0.30904203,3032.1,3032.0,4.8313]
[1763620259039,0.002,3032.1,3032.0,4.8313]
[1763620259351,0.002,3032.1,3032.0,4.3378]
[1763620259551,0.37814203,3032.1,3032.0,3.883]
[1763620259915,0.37814203,3032.1,3032.0,4.81481574]
[1763620259916,0.30904203,3032.1,3032.0,4.81481574]
[1763620260223,0.37814203,3032.1,3032.0,4.36001574]
[1763620260444,3.67076532,3032.1,3032.0,3.883]
[1763620260754,3.18036532,3032.1,3032.0,3.883]
[1763620261760,6.47840957,3032.1,3032.0,3.883]
[1763620264782,6.96880957,3032.1,3032.0,3.883]
[1763620265085,6.96904386,3032.1,3032.0,3.883]
[1763620265288,7.99614292,3032.1,3032.0,3.83147]
[1763620267276,7.99614292,3032.1,3032.0,3.72047]
[1763620267484,0.90699264,3032.0,3031.9,0.001]
[1763620267650,1.71386896,3032.0,3031.9,0.001]
[1763620267850,4.0427921,3032.0,3031.9,0.001]
[1763620268058,4.92829222,3032.0,3031.9,0.001]
[1763620268620,7.34094513,3032.0,3031.9,0.001]
[1763620268885,7.34056883,3032.0,3031.9,0.001]
[1763620269375,0.405504,3031.9,3031.5,0.001]
[1763620269568,6.77073922,3031.6,3031.5,0.001]
[1763620269751,4.27541595,3031.6,3031.5,0.001]
[1763620270084,4.73451595,3031.6,3031.5,0.001]
[1763620270287,4.40753358,3031.6,3031.5,0.001]
[1763620270485,8.16522178,3031.6,3031.5,0.001]
[1763620270669,9.71513689,3031.6,3031.5,0.001]
[1763620271554,9.58301926,3031.6,3031.5,0.001]
[1763620274107,4.51248086,3031.6,3031.5,0.592]
[1763620274869,3.60548822,3031.6,3031.5,4.31247]
[1763620275075,3.75905367,3032.2,3031.5,1.075]
[1763620275076,3.30008206,3032.1,3031.5,1.075]
[1763620275269,6.59816412,3032.1,3031.6,0.483]
[1763620275487,2.80222329,3032.0,3031.6,0.483]
[1763620275980,6.10037632,3032.0,3031.9,0.48]
[1763620276180,6.10037632,3032.0,3031.9,0.591]
[1763620276409,3.29815303,3032.0,3031.9,0.591]
[1763620276617,3.29815303,3032.0,3031.9,1.074]
[1763620277174,3.29815303,3032.0,3031.9,0.591]
[1763620277805,3.29815303,3032.0,3031.9,1.074]
[1763620277979,0.002,3032.1,3031.9,1.074]
[1763620278307,0.30824778,3032.1,3032.0,0.48]
[1763620278504,0.30825187,3032.1,3032.0,0.48]
[1763620279002,0.30825187,3032.1,3032.0,0.963]
[1763620279307,0.002,3032.1,3032.0,0.48]
[1763620279492,0.41715187,3032.1,3031.9,0.111]
[1763620279701,2.80682329,3032.0,3031.9,0.111]
[1763620279878,2.80682329,3032.0,3031.9,0.112]
[1763620280079,6.10497632,3032.0,3031.9,0.112]
[1763620280790,3.29815303,3032.0,3031.9,0.592]
[1763620282327,6.59809046,3032.1,3031.9,0.592]
[1763620283609,3.30004523,3032.1,3032.0,0.48]
[1763620283912,3.60630625,3032.1,3032.0,0.48]
[1763620284318,0.30826102,3032.1,3032.0,0.963]
[1763620284619,0.002,3032.1,3032.0,0.963]
[1763620290339,0.002,3032.3,3032.2,3.71647]
[1763620290503,0.002,3032.3,3032.2,4.668507]
[1763620290704,0.002,3032.3,3032.2,5.118607]
[1763620295161,0.002,3032.4,3032.3,3.71447]
[1763620295343,0.002,3032.4,3032.3,4.74507]
[1763620296054,3.36872329,3032.4,3032.3,3.82547]
[1763620296256,2.90702329,3032.4,3032.3,3.82547]
[1763620296658,0.002,3032.4,3032.3,4.29497]
[1763620296848,0.002,3032.4,3032.3,4.74507]
[1763620297154,0.002,3032.4,3032.3,4.29497]
[1763620297562,3.29971797,3032.4,3032.3,4.29497]
[1763620298435,3.29971797,3032.4,3032.3,3.82547]
[1763620298925,0.002,3032.4,3032.3,4.79177]
[1763620299125,0.002,3032.4,3032.3,4.304647]
[1763620299544,0.002,3032.4,3032.3,4.796647]
[1763620299937,0.002,3032.4,3032.3,3.82547]
[1763620300141,0.002,3032.4,3032.3,4.31747]
[1763620300426,0.002,3032.4,3032.3,4.79177]
[1763620301031,3.29962439,3032.5,3032.4,3.71247]
[1763620301236,3.29962439,3032.5,3032.4,4.67877]
[1763620301659,0.002,3032.5,3032.4,4.67877]
[1763620303156,0.002,3032.5,3032.4,3.71247]
[1763620303343,0.30823802,3032.5,3032.4,4.20447]
[1763620303743,3.60584725,3032.5,3032.4,4.20447]
[1763620303962,3.68054725,3032.5,3032.4,3.71247]
[1763620304458,6.48277054,3032.5,3032.4,3.71247]
[1763620305028,3.68054725,3032.5,3032.4,3.71247]
[1763620305228,6.40807054,3032.5,3032.4,4.20447]
[1763620305434,6.40807054,3032.5,3032.4,3.71247]
[1763620306070,6.48277054,3032.5,3032.4,3.71247]
[1763620306447,6.40807054,3032.5,3032.4,3.71247]
[1763620306666,0.30823802,3032.5,3032.4,4.20447]
[1763620306858,3.29960923,3032.5,3032.4,4.20447]
[1763620307058,3.60584725,3032.5,3032.4,4.20447]
[1763620307263,3.60584725,3032.5,3032.4,4.67877]
[1763620308656,3.60584725,3032.5,3032.4,5.157747]
[1763620308657,0.30823802,3032.5,3032.4,5.157747]
[1763620308970,3.29960923,3032.5,3032.4,4.683447]
[1763620309165,3.60584725,3032.5,3032.4,4.20447]
[1763620309368,3.68054725,3032.5,3032.4,3.71247]
[1763620311060,4.17004725,3032.5,3032.4,3.71247]
[1763620311371,4.17019658,3032.5,3032.4,3.71247]
[1763620312381,6.10446161,3032.5,3032.4,3.71247]
[1763620312683,0.90699264,3032.4,3032.0,3.71247]
[1763620312835,0.90699264,3032.4,3031.9,0.001]
[1763620312836,0.405504,3032.0,3031.9,0.001]
[1763620313035,4.10276153,3032.0,3031.9,0.001]
[1763620313273,3.41739288,3032.0,3031.9,0.001]
[1763620313458,4.29862959,3032.0,3031.9,0.001]
[1763620314037,4.29822423,3032.0,3031.9,0.001]
[1763620314438,3.41698752,3032.0,3031.9,0.001]
[1763620314666,6.71514055,3032.0,3031.9,0.001]
[1763620314970,6.84725905,3032.0,3031.9,0.001]
[1763620315180,6.84700126,3032.0,3031.9,0.001]
[1763620315544,6.73600126,3032.0,3031.9,0.001]
[1763620315884,6.60388276,3032.0,3031.9,0.001]
[1763620316089,6.60388276,3032.0,3031.5,0.001]
[1763620316090,0.405504,3031.8,3031.5,0.001]
[1763620316245,3.78001395,3031.6,3031.5,0.001]
[1763620316445,4.08573815,3031.6,3031.5,0.001]
[1763620316664,0.405504,3031.3,3031.2,0.001]
[1763620316944,4.60224215,3031.3,3031.2,0.001]
[1763620317139,5.90150621,3031.3,3031.2,0.001]
[1763620317348,6.03366137,3031.3,3031.2,0.001]
[1763620318448,5.92151565,3031.3,3031.2,0.001]
[1763620319577,9.2204303,3031.3,3031.2,0.001]
[1763620319886,8.91585182,3031.3,3031.2,0.001]
[1763620320173,9.22021294,3031.3,3031.2,0.001]
[1763620320678,9.22021294,3031.3,3030.5,0.001]
[1763620320679,12.51912759,3031.3,3030.5,0.001]
[1763620320981,0.405504,3031.0,3030.5,0.001]
[1763620321213,4.37101795,3030.9,3030.5,0.001]
[1763620321355,4.61195552,3030.8,3030.5,0.001]
[1763620321555,5.58281664,3030.8,3030.5,0.001]
[1763620321759,6.70202553,3030.8,3030.5,0.001]
[1763620321956,4.97327907,3030.7,3030.5,0.001]